fUSD/lending_fUSD_20240423
["ID","MTS","AMOUNT","RATE_DAILY","PERIOD"]
[323345025,1713907866536,-500.0,0.00012857,2]
[323345026,1713907866549,-165.9483341,0.00012857,2]
[323345027,1713907866562,-239.18082313,0.00012857,2]
[323345028,1713907866578,-500.0,0.00012857,2]
[323345029,1713907866591,-364.53523108,0.00012857,2]
[323345030,1713907866604,-500.0,0.00012857,2]
[323345031,1713907866618,-500.0,0.00012857,2]
[323345032,1713907866631,-500.0,0.00012857,2]
[323345033,1713907866644,-500.0,0.00012857,2]
[323345034,1713907866658,-500.0,0.00012857,2]
[323345035,1713907866704,-568.35224634,0.00012857,2]
[323345036,1713907866719,-420.30539395,0.00012857,2]
[323345037,1713907866733,-500.0,0.00012857,2]
[323345038,1713907866748,-548.42901095,0.00012857,2]
[323345039,1713907866762,-500.0,0.00012857,2]
[323345040,1713907866775,-500.0,0.00012857,2]
[323345041,1713907866788,-500.0,0.00012857,2]
[323345042,1713907866801,-500.0,0.00012857,2]
[323345043,1713907866815,-500.0,0.00012857,2]
[323345044,1713907866829,-500.0,0.00012857,2]
[323345045,1713907866843,-500.0,0.00012857,2]
[323345046,1713907866856,-500.0,0.00012857,2]
[323345047,1713907866870,-500.0,0.00012857,2]
[323345048,1713907866884,-500.0,0.00012857,2]
[323345049,1713907866897,-500.0,0.00012857,2]
[323345050,1713907866911,-500.0,0.00012857,2]
[323345051,1713907866924,-500.0,0.00012857,2]
[323345052,1713907866937,-500.0,0.00012857,2]
[323345053,1713907866951,-500.0,0.00012857,2]
[323345054,1713907866964,-500.0,0.00012857,2]
[323345055,1713907866978,-500.0,0.00012857,2]
[323345056,1713907866991,-500.0,0.00012857,2]
[323345057,1713907867005,-500.0,0.00012857,2]
[323345058,1713907867017,-500.0,0.00012857,2]
[323345059,1713907867030,-500.0,0.00012857,2]
[323345060,1713907867043,-315.66934572,0.00012857,2]
[323345061,1713907867056,-500.0,0.00012857,2]
[323345062,1713907867070,-500.0,0.00012857,2]
[323345063,1713907867085,-500.0,0.00012857,2]
[323345064,1713907867099,-500.0,0.00012857,2]
[323345065,1713907867113,-500.0,0.00012857,2]
[323345066,1713907867128,-500.0,0.00012857,2]
[323345067,1713907867143,-500.0,0.00012857,2]
[323345068,1713907867157,-500.0,0.00012857,2]
[323345069,1713907867167,-500.0,0.00012857,2]
[323345070,1713907867177,-500.0,0.00012857,2]
[323345071,1713907867186,-500.0,0.00012857,2]
[323345072,1713907867196,-240.3532032,0.00012857,2]
[323345073,1713907867206,-500.0,0.00012857,2]
[323345074,1713907867216,-500.0,0.00012857,2]
[323345075,1713907867225,-500.0,0.00012857,2]
[323345076,1713907867235,-239.3617307,0.00012857,2]
[323345077,1713907867245,-500.0,0.00012857,2]
[323345078,1713907867254,-500.0,0.00012857,2]
[323345079,1713907867263,-317.6657779,0.00012857,2]
[323345080,1713907867272,-500.0,0.00012857,2]
[323345081,1713907867282,-500.0,0.00012857,2]
[323345082,1713907867292,-233.62599275,0.00012857,2]
[323345083,1713907867301,-500.0,0.00012857,2]
[323345084,1713907867311,-500.0,0.00012857,2]
[323345085,1713907867321,-500.0,0.00012857,2]
[323345086,1713907867333,-500.0,0.00012857,2]
[323345087,1713907867342,-500.0,0.00012857,2]
[323345088,1713907867352,-500.0,0.00012857,2]
[323345089,1713907867361,-572.50133204,0.00012857,2]
[323345090,1713907867370,-500.0,0.00012857,2]
[323345091,1713907867686,-500.0,0.00012857,2]
[323345092,1713907867721,-500.0,0.00012857,2]
[323345093,1713907867739,-491.19,0.00012857,2]
[323345094,1713907867748,-500.0,0.00012857,2]
[323345095,1713907867758,-500.0,0.00012857,2]
[323345096,1713907867768,-500.0,0.00012857,2]
[323345097,1713907867777,-500.0,0.00012857,2]
[323345098,1713907867787,-500.0,0.00012857,2]
[323345099,1713907867796,-500.0,0.00012857,2]
[323345100,1713907867806,-454.93201579,0.00012857,2]
[323345101,1713907867815,-500.0,0.00012857,2]
[323345102,1713907867826,-161.71649222,0.00012857,2]
[323345103,1713907867835,-500.0,0.00012857,2]
[323345104,1713907867845,-500.0,0.00012857,2]
[323345105,1713907867855,-500.0,0.00012857,2]
[323345106,1713907867865,-500.0,0.00012857,2]
[323345107,1713907867875,-500.0,0.00012857,2]
[323345108,1713907867885,-460.83,0.00012857,2]
[323345109,1713907867895,-500.0,0.00012857,2]
[323345110,1713907867905,-500.0,0.00012857,2]
[323345111,1713907867915,-500.0,0.00012857,2]
[323345112,1713907867924,-630.93,0.00012857,2]
[323345113,1713907867934,-500.0,0.00012857,2]
[323345114,1713907867944,-455.37,0.00012857,2]
[323345115,1713907867953,-164.52977306,0.00012857,2]
[323345116,1713907867964,-500.0,0.00012857,2]
[323345117,1713907867974,-500.0,0.00012857,2]
[323345118,1713907867984,-500.0,0.00012857,2]
[323345119,1713907867993,-500.0,0.00012857,2]
[323345120,1713907868003,-500.0,0.00012857,2]
[323345121,1713907868012,-500.0,0.00012857,2]
[323345122,1713907868022,-500.0,0.00012857,2]
[323345123,1713907868031,-500.0,0.00012857,2]
[323345124,1713907868040,-479.98181584,0.00012857,2]
[323345125,1713907868050,-500.0,0.00012857,2]
[323345126,1713907868059,-500.0,0.00012857,2]
[323345127,1713907868069,-500.0,0.00012857,2]
[323345128,1713907868079,-500.0,0.00012857,2]
[323345129,1713907868088,-500.0,0.00012857,2]
[323345130,1713907868098,-500.0,0.00012857,2]
[323345131,1713907868107,-500.0,0.00012857,2]
[323345132,1713907868117,-500.0,0.00012857,2]
[323345133,1713907868126,-500.0,0.00012857,2]
[323345134,1713907868136,-500.0,0.00012857,2]
[323345135,1713907868146,-500.0,0.00012857,2]
[323345136,1713907868156,-500.0,0.00012857,2]
[323345137,1713907868165,-351.98854086,0.00012857,2]
[323345138,1713907868176,-500.0,0.00012857,2]
[323345139,1713907868185,-500.0,0.00012857,2]
[323345140,1713907868195,-500.0,0.00012857,2]
[323345141,1713907868204,-500.0,0.00012857,2]
[323345142,1713907868213,-500.0,0.00012857,2]
[323345143,1713907868223,-500.0,0.00012857,2]
[323345144,1713907868233,-615.84,0.00012857,2]
[323345145,1713907868242,-500.0,0.00012857,2]
[323345146,1713907868254,-500.0,0.00012857,2]
[323345147,1713907868266,-500.0,0.00012857,2]
[323345148,1713907868276,-500.0,0.00012857,2]
[323345149,1713907868287,-500.0,0.00012857,2]
[323345150,1713907868297,-500.0,0.00012857,2]
[323345151,1713907868307,-500.0,0.00012857,2]
[323345152,1713907868318,-633.49089485,0.00012857,2]
[323345153,1713907868327,-500.0,0.00012857,2]
[323345154,1713907868337,-500.0,0.00012857,2]
[323345155,1713907868347,-500.0,0.00012857,2]
[323345156,1713907868356,-500.0,0.00012857,2]
[323345157,1713907868368,-500.0,0.00012857,2]
[323345158,1713907868378,-500.0,0.00012857,2]
[323345159,1713907868387,-500.0,0.00012857,2]
[323345160,1713907868396,-500.0,0.00012857,2]
[323345161,1713907868406,-500.0,0.00012857,2]
[323345162,1713907868415,-500.0,0.00012857,2]
[323345163,1713907868425,-500.0,0.00012857,2]
[323345164,1713907868434,-500.0,0.00012857,2]
[323345165,1713907868443,-500.0,0.00012857,2]
[323345166,1713907868453,-500.0,0.00012857,2]
[323345167,1713907868465,-500.0,0.00012857,2]
[323345168,1713907868474,-500.0,0.00012857,2]
[323345169,1713907868484,-500.0,0.00012857,2]
[323345170,1713907868496,-500.0,0.00012857,2]
[323345171,1713907868504,-500.0,0.00012857,2]
[323345172,1713907868514,-500.0,0.00012857,2]
[323345173,1713907868524,-500.0,0.00012857,2]
[323345174,1713907868534,-500.0,0.00012857,2]
[323345175,1713907868543,-500.0,0.00012857,2]
[323345176,1713907868554,-500.0,0.00012857,2]
[323345177,1713907868565,-500.0,0.00012857,2]
[323345178,1713907868577,-500.0,0.00012857,2]
[323345179,1713907868587,-500.0,0.00012857,2]
[323345180,1713907868596,-500.0,0.00012857,2]
[323345181,1713907868605,-500.0,0.00012857,2]
[323345182,1713907868616,-500.0,0.00012857,2]
[323345183,1713907868626,-500.0,0.00012857,2]
[323345184,1713907868636,-500.0,0.00012857,2]
[323345185,1713907868645,-500.0,0.00012857,2]
[323345186,1713907868656,-500.0,0.00012857,2]
[323345187,1713907868665,-500.0,0.00012857,2]
[323345188,1713907868675,-500.0,0.00012857,2]
[323345189,1713907868691,-500.0,0.00012857,2]
[323345190,1713907868707,-500.0,0.00012857,2]
[323345191,1713907868717,-978.0,0.0001286,2]
[323345192,1713907868726,-10000.0,0.00012861,2]
[323345193,1713907868737,-1000.0,0.00012862,2]
[323345194,1713907868746,-500.0,0.00012862,2]
[323345195,1713907868757,-172.68675683,0.00012869,2]
[323345196,1713907868766,-500.0,0.00012876,2]
[323345197,1713907868776,-500.0,0.00012876,2]
[323345198,1713907868786,-500.0,0.00012876,2]
[323345199,1713907868796,-500.0,0.00012876,2]
[323345200,1713907868806,-500.0,0.00012876,2]
[323345201,1713907868816,-500.0,0.00012876,2]
[323345202,1713907868827,-500.0,0.00012876,2]
[323345203,1713907868837,-500.0,0.00012876,2]
[323345204,1713907868847,-500.0,0.00012876,2]
[323345205,1713907868857,-326.18902745,0.00012876,2]
[323345206,1713907868867,-500.0,0.00012876,2]
[323345207,1713907868877,-500.0,0.00012876,2]
[323345208,1713907868887,-231.71,0.00012876,2]
[323345209,1713907868897,-500.0,0.00012876,2]
[323345210,1713907868907,-500.0,0.00012876,2]
[323345211,1713907868917,-500.0,0.00012876,2]
[323345212,1713907868926,-500.0,0.00012876,2]
[323345213,1713907868936,-615.02474734,0.00012876,2]
[323345214,1713907868946,-500.0,0.00012876,2]
[323345215,1713907868956,-500.0,0.00012876,2]
[323345216,1713907868966,-500.0,0.00012876,2]
[323345217,1713907868976,-500.0,0.00012876,2]
[323345218,1713907868986,-500.0,0.00012876,2]
[323345219,1713907868996,-500.0,0.00012876,2]
[323345220,1713907869007,-500.0,0.00012876,2]
[323345221,1713907869017,-500.0,0.00012876,2]
[323345222,1713907869027,-500.0,0.00012876,2]
[323345223,1713907869037,-500.0,0.00012876,2]
[323345224,1713907869047,-500.0,0.00012876,2]
[323345225,1713907869057,-500.0,0.00012876,2]
[323345226,1713907869067,-500.0,0.00012876,2]
[323345227,1713907869079,-500.0,0.00012876,2]
[323345228,1713907869088,-500.0,0.00012876,2]
[323345229,1713907869098,-500.0,0.00012876,2]
[323345230,1713907869109,-500.0,0.00012876,2]
[323345231,1713907869119,-543.58,0.00012876,2]
[323345232,1713907869129,-500.0,0.00012876,2]
[323345233,1713907869138,-500.0,0.00012876,2]
[323345234,1713907869148,-500.0,0.00012876,2]
[323345235,1713907869158,-641.72,0.00012876,2]
[323345236,1713907869168,-500.0,0.00012876,2]
[323345237,1713907869177,-500.0,0.00012876,2]
[323345238,1713907869187,-500.0,0.00012876,2]
[323345239,1713907869196,-500.0,0.00012876,2]
[323345240,1713907869206,-500.0,0.00012876,2]
[323345241,1713907869216,-1052.29,0.00012876,2]
[323345242,1713907869225,-500.0,0.00012876,2]
[323345243,1713907869235,-500.0,0.00012876,2]
[323345244,1713907869245,-1511.54,0.00012876,2]
[323345245,1713907869254,-500.0,0.00012876,2]
[323345246,1713907869264,-500.0,0.00012876,2]
[323345247,1713907869274,-500.0,0.00012876,2]
[323345248,1713907869284,-500.0,0.00012876,2]
[323345249,1713907869294,-500.0,0.00012876,2]
[323345250,1713907869303,-1749.73,0.00012876,2]
[323345251,1713907869314,-500.0,0.00012876,2]
[323345252,1713907869323,-500.0,0.00012876,2]
[323345253,1713907869335,-1141.47,0.00012876,2]
[323345254,1713907869345,-500.0,0.00012876,2]
[323345255,1713907869355,-500.0,0.00012876,2]
[323345256,1713907869365,-500.0,0.00012876,2]
[323345257,1713907869375,-500.0,0.00012876,2]
[323345258,1713907869385,-800.73,0.00012876,2]
[323345259,1713907869395,-500.0,0.00012876,2]
[323345260,1713907869405,-500.0,0.00012876,2]
[323345261,1713907869415,-500.0,0.00012876,2]
[323345262,1713907869424,-500.0,0.00012876,2]
[323345263,1713907869434,-500.0,0.00012876,2]
[323345264,1713907869443,-500.0,0.00012876,2]
[323345265,1713907869453,-500.0,0.00012876,2]
[323345266,1713907869463,-550.25,0.00012876,2]
[323345267,1713907869472,-500.0,0.00012876,2]
[323345268,1713907869482,-500.0,0.00012876,2]
[323345269,1713907869492,-2730.76,0.00012876,2]
[323345270,1713907869503,-500.0,0.00012876,2]
[323345271,1713907869513,-500.0,0.00012876,2]
[323345272,1713907869523,-234.53085548,0.00012876,2]
[323345273,1713907869534,-500.0,0.00012876,2]
[323345274,1713907869545,-500.0,0.00012876,2]
[323345275,1713907869555,-297.16379247,0.00012876,2]
[323345276,1713907869910,-933.49620753,0.00012876,2]
[323345277,1713907869919,-500.0,0.00012876,2]
[323345278,1713907869929,-507.79,0.00012876,2]
[323345279,1713907869938,-500.0,0.00012876,2]
[323345280,1713907869948,-183.04,0.00012876,2]
[323345281,1713907869957,-500.0,0.00012876,2]
[323345282,1713907869967,-500.0,0.00012876,2]
[323345283,1713907869976,-500.0,0.00012876,2]
[323345284,1713907869985,-500.0,0.00012876,2]
[323345285,1713907869994,-500.0,0.00012876,2]
[323345286,1713907870003,-182.24728016,0.00012876,2]
[323345287,1713907870013,-500.0,0.00012876,2]
[323345288,1713907870022,-500.0,0.00012876,2]
[323345289,1713907870031,-500.0,0.00012876,2]
[323345290,1713907870041,-500.0,0.00012876,2]
[323345291,1713907870053,-500.0,0.00012876,2]
[323345292,1713907870064,-500.0,0.00012876,2]
[323345293,1713907870074,-399.58,0.00012876,2]
[323345294,1713907870084,-1000.0,0.00012895,2]
[323345295,1713907870094,-177.02889108,0.000129,2]
[323345296,1713907870103,-982.12072285,0.000129,2]
[323345297,1713907870643,-1507.02137576,0.00010957,2]
[323345298,1713907870654,-138.74045945,0.00010958,2]
[323345299,1713907870677,-361.25954055,0.00010958,2]
[323345300,1713907870686,-25.0857314,0.00010958,2]
[323345301,1713907870698,-474.9142686,0.00010958,2]
[323345302,1713907870707,-500.0,0.00010958,2]
[323345303,1713907870717,-500.0,0.00011232,2]
[323345304,1713907870932,-500.0,0.00011232,2]
[323345305,1713907870942,-500.0,0.00011232,2]
[323345306,1713907870951,-500.0,0.00011232,2]
[323345307,1713907870960,-500.0,0.00011506,2]
[323345308,1713907870969,-500.0,0.00011506,2]
[323345309,1713907870978,-500.0,0.00011506,2]
[323345310,1713907870987,-500.0,0.00011506,2]
[323345311,1713907870996,-500.0,0.00011761,2]
[323345312,1713907871005,-500.0,0.00011761,2]
[323345313,1713907871015,-500.0,0.0001178,2]
[323345314,1713907871024,-500.0,0.0001178,2]
[323345315,1713907871033,-500.0,0.0001178,2]
[323345316,1713907871042,-500.0,0.00012035,2]
[323345317,1713907871052,-500.0,0.00012035,2]
[323345318,1713907871061,-500.0,0.00012054,2]
[323345319,1713907871070,-500.0,0.00012054,2]
[323345320,1713907871081,-500.0,0.00012309,2]
[323345321,1713907871091,-156.4,0.00012328,2]
[323345322,1713907871100,-452.36,0.00012328,2]
[323345323,1713907871110,-500.0,0.00012583,2]
[323345324,1713907871120,-579.64,0.00012602,2]
[323345325,1713907871130,-358.549,0.00012802,2]
[323345326,1713907871139,-240.0,0.00012802,2]
[323345327,1713907871150,-254.47,0.00012857,2]
[323345328,1713907871159,-24376.6949414,0.000129,2]
[323345329,1713907871171,-61249.755,0.000129,2]
[323345330,1713907871190,-1687.36407221,0.000129,2]
[323345331,1713907871201,-86198.10278025,0.000129,2]
[323345332,1713907871312,-597.49792868,0.000129,2]
[323345333,1713907871359,-357.41791476,0.0001178,2]
[323345351,1713909031621,-262.29211227,8.215e-05,2]
[323345352,1713909031633,-657.70788773,8.216e-05,2]
[323345353,1713909031648,-1337.15376871,8.216e-05,2]
[323345354,1713909031662,-2524.05,8.217e-05,2]
[323345355,1713909031674,-159.41,8.219e-05,2]
[323345356,1713909031686,-155.0,8.496e-05,2]
[323345357,1713909031700,-159.41,9.316e-05,2]
[323345358,1713909031711,-1726.41,9.51e-05,2]
[323345359,1713909031723,-640.0,9.582e-05,2]
[323345360,1713909031735,-1048.92,9.582e-05,2]
[323345361,1713909031746,-250.0,9.613e-05,2]
[323345362,1713909031758,-5125.1800322,9.67e-05,2]
[323345363,1713909031772,-3632.0599678,9.67e-05,2]
[323345364,1713909031784,-150.0,9.808e-05,2]
[323345365,1713909031797,-150.0,9.827e-05,2]
[323345366,1713909031808,-8838.64188649,9.828e-05,2]
[323345367,1713909031822,-574.25050338,9.828e-05,2]
[323345368,1713909031846,-404.0000001,9.828e-05,2]
[323345369,1713909031860,-326.34,9.828e-05,2]
[323345370,1713909031876,-420.0,9.828e-05,2]
[323345371,1713909031890,-2417.59688237,9.828e-05,2]
[323345372,1713909031906,-305.25085993,9.828e-05,2]
[323345375,1713909031986,-956.33828,9.828e-05,2]
[323345377,1713909032000,-6450.0,9.828e-05,2]
[323345379,1713909032014,-3207.58158773,9.828e-05,2]
[323345381,1713909032025,-163.24,9.841e-05,2]
[323345384,1713909032037,-156.62,0.00010123,2]
[323345386,1713909032048,-174.4,0.0001013,2]
[323345388,1713909032060,-44.5412278,0.0001019,2]
[323345391,1713909032075,-315.4587722,0.0001019,2]
[323345393,1713909032087,-156.62,0.00010299,2]
[323345396,1713909032100,-2796.65461008,0.00010397,2]
[323345400,1713909032112,-159.41,0.00010414,2]
[323345404,1713909032123,-156.62,0.00010475,2]
[323345407,1713909032134,-1000.0,0.00010505,2]
[323345410,1713909032146,-156.62,0.00010651,2]
[323345414,1713909032158,-1000.0,0.00010729,2]
[323345417,1713909032169,-640.0,0.00010779,2]
[323345421,1713909032181,-100.29785738,0.00010829,2]
[323345424,1713909032196,-1054.15694262,0.00010829,2]
[323345425,1713909032208,-436.93848172,0.00010836,2]
[323345426,1713909032220,-506.33217566,0.00010855,2]
[323345427,1713909032236,-799.52162434,0.00010855,2]
[323345428,1713909032247,-165.46593543,0.00010857,2]
[323345429,1713909032259,-77.18016023,0.00010886,2]
[323345430,1713909032274,-88.86983977,0.00010886,2]
[323345431,1713909032285,-1220.64016023,0.00010927,2]
[323345432,1713909032300,-1486.7837916,0.00010927,2]
[323345433,1713909032313,-647.77,0.00010927,2]
[323345434,1713909032339,-4995.6476831,0.00010927,2]
[323345435,1713909032362,-305879.19013811,0.00010927,2]
[323345436,1713909032377,-76805.49996,0.00010927,2]
[323345437,1713909032391,-30679.999987,0.00010927,2]
[323345438,1713909032405,-3023.84720886,0.00010927,2]
[323345439,1713909032419,-595.30210193,0.00010927,2]
[323345440,1713909032432,-4253.28735301,0.00010927,2]
[323345441,1713909032446,-1848.61575999,0.00010927,2]
[323345442,1713909032460,-251.82359112,0.00010927,2]
[323345443,1713909032474,-18112.81597109,0.00010927,2]
[323345444,1713909032526,-261.36402809,0.00010927,2]
[323345445,1713909032540,-299.68,0.00010927,2]
[323345446,1713909032555,-768.59427376,0.00010927,2]
[323345447,1713909032569,-5107.4353723,0.00010927,2]
[323345448,1713909032583,-919.32000046,0.00010927,2]
[323345449,1713909032598,-630.85,0.00010927,2]
[323345450,1713909032612,-2121.37763752,0.00010927,2]
[323345451,1713909032627,-1194.85289494,0.00010927,2]
[323345452,1713909032641,-3971.0701764,0.00010927,2]
[323345453,1713909032655,-320.8465035,0.00010927,2]
[323345454,1713909032670,-2214.06189973,0.00010927,2]
[323345455,1713909032684,-1450.28399832,0.00010927,2]
[323345456,1713909032698,-1125.00000012,0.00010927,2]
[323345457,1713909032712,-5848.38428761,0.00010927,2]
[323345458,1713909032736,-258.128903,0.00010927,2]
[323345459,1713909032750,-266.27999998,0.00010927,2]
[323345460,1713909032764,-752.4458828,0.00010927,2]
[323345475,1713909037579,-15751.21024325,0.00010927,2]
[323345482,1713909037690,-950.425,0.00010927,2]
[323345483,1713909037749,-52226.33727626,0.00010927,2]
[323345484,1713909037759,-313.36259302,0.00010936,2]
[323345485,1713909037768,-963.22955266,0.00010957,2]
[323345486,1713909037778,-396035.05174385,0.00010957,2]
[323345487,1713909037789,-6423.2968965,0.00010957,2]
[323345488,1713909037801,-1681.81594384,0.00010957,2]
[323345489,1713909037812,-366.83172432,0.00010957,2]
[323345490,1713909037832,-577.69928284,0.00010957,2]
[323345491,1713909037843,-94966.02915385,0.00010957,2]
[323345492,1713909037855,-1562.91945283,0.00010957,2]
[323345493,1713909037867,-3487.91076185,0.00010957,2]
[323345494,1713909037879,-4464.75015773,0.00010957,2]
[323345495,1713909037890,-13713.3498527,0.00010957,2]
[323345496,1713909037901,-313.18496432,0.00010957,2]
[323345497,1713909037914,-2031.66175285,0.00010957,2]
[323345498,1713909037925,-2694.40918887,0.00010957,2]
[323345500,1713909037936,-30772.72992024,0.00010957,2]
[323345503,1713909037960,-6339.3,0.00010957,2]
[323345506,1713909037979,-3488.22393498,0.00010957,2]
[323345508,1713909037991,-2114.79778006,0.00010957,2]
[323345511,1713909038002,-29850.72174718,0.00010957,2]
[323345513,1713909038014,-8157.13396545,0.00010957,2]
[323345515,1713909038025,-6328.75319065,0.00010957,2]
[323345549,1713909038306,-2538.78599999,0.00010957,2]
[323345713,1713909039791,-474.635,9.102e-05,2]
[323345715,1713909039803,-401.355,9.102e-05,2]
[323345717,1713909039813,-6675.05298514,0.00010957,2]
[323345722,1713909039848,-9718.95410468,0.00010957,2]
[323345724,1713909039860,-591.65,0.00010957,2]
[323345730,1713909039907,-50936.93710543,0.00010957,2]
[323345732,1713909039916,-500.0,0.00010958,2]
[323345734,1713909039926,-500.0,0.00010958,2]
[323345736,1713909039935,-500.0,0.00010958,2]
[323345738,1713909039947,-500.0,0.00010958,2]
[323345740,1713909039956,-500.0,0.00010958,2]
[323345742,1713909039966,-500.0,0.00010958,2]
[323345744,1713909039976,-259.91122735,0.00010958,2]
[323345746,1713909039985,-500.0,0.00010958,2]
[323345748,1713909039995,-500.0,0.00010958,2]
[323345750,1713909040005,-500.0,0.00010958,2]
[323345752,1713909040014,-500.0,0.00010958,2]
[323345754,1713909040024,-500.0,0.00010958,2]
[323345756,1713909040034,-500.0,0.00010958,2]
[323345758,1713909040042,-500.0,0.00010958,2]
[323345760,1713909040052,-500.0,0.00010958,2]
[323345762,1713909040061,-500.0,0.00010958,2]
[323345764,1713909040069,-500.0,0.00010958,2]
[323345766,1713909040079,-500.0,0.00010958,2]
[323345768,1713909040088,-500.0,0.00010958,2]
[323345770,1713909040097,-500.0,0.00010958,2]
[323345772,1713909040106,-500.0,0.00010958,2]
[323345774,1713909040116,-500.0,0.00010958,2]
[323345776,1713909040124,-500.0,0.00010958,2]
[323345778,1713909040133,-500.0,0.00010958,2]
[323345780,1713909040142,-500.0,0.00010958,2]
[323345782,1713909040151,-500.0,0.00010958,2]
[323345784,1713909040161,-500.0,0.00010958,2]
[323345786,1713909040169,-500.0,0.00010958,2]
[323345788,1713909040178,-500.0,0.00010958,2]
[323345790,1713909040187,-500.0,0.00010958,2]
[323345792,1713909040196,-500.0,0.00010958,2]
[323345794,1713909040205,-500.0,0.00010958,2]
[323345796,1713909040215,-500.0,0.00010958,2]
[323345798,1713909040225,-500.0,0.00010958,2]
[323345800,1713909040233,-500.0,0.00010958,2]
[323345802,1713909040242,-500.0,0.00010958,2]
[323345804,1713909040251,-500.0,0.00010958,2]
[323345805,1713909040260,-500.0,0.00010958,2]
[323345806,1713909040269,-500.0,0.00010958,2]
[323345807,1713909040278,-500.0,0.00010958,2]
[323345808,1713909040287,-500.0,0.00010958,2]
[323345809,1713909040296,-500.0,0.00010958,2]
[323345810,1713909040306,-500.0,0.00010958,2]
[323345811,1713909040314,-500.0,0.00010958,2]
[323345812,1713909040323,-500.0,0.00010958,2]
[323345813,1713909040333,-500.0,0.00010958,2]
[323345814,1713909040342,-500.0,0.00010958,2]
[323345815,1713909040351,-500.0,0.00010958,2]
[323345816,1713909040360,-500.0,0.00010958,2]
[323345817,1713909040369,-500.0,0.00010958,2]
[323345818,1713909040378,-500.0,0.00010958,2]
[323345819,1713909040387,-500.0,0.00010958,2]
[323345821,1713909040396,-500.0,0.00010958,2]
[323345823,1713909040405,-500.0,0.00010958,2]
[323345825,1713909040414,-500.0,0.00010958,2]
[323345827,1713909040423,-500.0,0.00010958,2]
[323345829,1713909040432,-500.0,0.00010958,2]
[323345831,1713909040442,-500.0,0.00010958,2]
[323345833,1713909040451,-500.0,0.00010958,2]
[323345835,1713909040462,-500.0,0.00010958,2]
[323345837,1713909040471,-500.0,0.00010958,2]
[323345839,1713909040480,-500.0,0.00010958,2]
[323345841,1713909040489,-500.0,0.00010958,2]
[323345843,1713909040498,-500.0,0.00010958,2]
[323345845,1713909040508,-500.0,0.00010958,2]
[323345847,1713909040517,-500.0,0.00010958,2]
[323345849,1713909040526,-500.0,0.00010958,2]
[323345851,1713909040535,-500.0,0.00010958,2]
[323345875,1713909040732,-500.0,0.00010958,2]
[323345878,1713909040761,-500.0,0.00010958,2]
[323345880,1713909040770,-500.0,0.00010958,2]
[323345882,1713909040780,-500.0,0.00010958,2]
[323345884,1713909040790,-500.0,0.00010958,2]
[323345886,1713909040799,-500.0,0.00010958,2]
[323345888,1713909040808,-500.0,0.00010958,2]
[323345890,1713909040817,-500.0,0.00010958,2]
[323345892,1713909040826,-500.0,0.00010958,2]
[323345894,1713909040835,-500.0,0.00010958,2]
[323345896,1713909040845,-500.0,0.00010958,2]
[323345898,1713909040854,-500.0,0.00010958,2]
[323345900,1713909040864,-500.0,0.00010958,2]
[323345902,1713909040875,-500.0,0.00010958,2]
[323345905,1713909040884,-500.0,0.00010958,2]